bitfinex/quotes_BTCUSD_20230107
["timestamp","ask_amount","ask_price","bid_price","bid_amount"]
[1673121478170,0.01526591,16956.0,16955.0,2.71434465]
[1673121478703,0.01526591,16956.0,16955.0,3.20492665]
[1673121484326,0.01526591,16956.0,16955.0,2.71434465]
[1673121484865,0.01526591,16956.0,16955.0,3.20492665]
[1673121485091,0.01526591,16956.0,16955.0,2.33679917]
[1673121485092,0.1923105,16956.0,16955.0,2.33679917]
[1673121485315,0.1923105,16956.0,16955.0,2.14621717]
[1673121485820,0.1923105,16956.0,16955.0,2.71434465]
[1673121486298,0.1923105,16956.0,16955.0,2.14621717]
[1673121487209,0.1923105,16956.0,16955.0,2.71434465]
[1673121487476,0.1923105,16956.0,16955.0,1.84621717]
[1673121487723,0.1923105,16956.0,16955.0,1.96949954]
[1673121487987,0.45787549,16956.0,16955.0,1.66949954]
[1673121488484,0.45787549,16956.0,16955.0,1.84621717]
[1673121488953,0.45787549,16956.0,16955.0,1.66949954]
[1673121489174,0.1923105,16956.0,16955.0,1.84621717]
[1673121489423,0.45787549,16956.0,16955.0,1.84621717]
[1673121489885,0.45787549,16956.0,16955.0,1.66949954]
[1673121493596,0.1923105,16956.0,16955.0,1.84621717]
[1673121493873,0.1923105,16956.0,16955.0,1.66949954]
[1673121494098,0.1923105,16956.0,16955.0,1.84621717]
[1673121494646,0.45787549,16956.0,16955.0,1.66949954]
[1673121494890,0.1923105,16956.0,16955.0,1.84621717]
[1673121495642,0.1923105,16956.0,16955.0,1.66949954]
[1673121495914,0.1923105,16956.0,16955.0,2.23762702]
[1673121496172,0.1923105,16956.0,16955.0,1.66949954]
[1673121496885,0.1923105,16956.0,16955.0,1.84621717]
[1673121497141,0.1923105,16956.0,16955.0,2.41434465]
[1673121497828,0.1923105,16956.0,16955.0,2.23762702]
[1673121498054,0.1923105,16956.0,16955.0,1.66949954]
[1673121498502,0.1923105,16956.0,16955.0,2.23762702]
[1673121498752,0.1923105,16956.0,16955.0,2.72820902]
[1673121499335,0.1923105,16956.0,16955.0,2.41434465]
[1673121499586,0.1923105,16956.0,16955.0,2.90492665]
[1673121499851,0.1923105,16956.0,16955.0,2.41434465]
[1673121501386,0.1923105,16956.0,16955.0,2.90492665]
[1673121501869,0.1923105,16956.0,16955.0,2.41434465]
[1673121503993,0.1923105,16956.0,16955.0,1.84621717]
[1673121505132,0.1923105,16956.0,16955.0,2.41434465]
[1673121505346,0.45787549,16956.0,16955.0,1.66949954]
[1673121505826,0.45787549,16956.0,16955.0,1.66943352]
[1673121509308,0.45787549,16956.0,16955.0,2.237561]
[1673121509562,0.1923105,16956.0,16955.0,2.237561]
[1673121510281,0.45787549,16956.0,16955.0,1.66943352]
[1673121522620,1.06556049,16956.0,16955.0,1.66943352]
[1673121522868,0.45787549,16956.0,16955.0,1.66943352]
[1673121523874,1.06556049,16956.0,16955.0,1.66943352]
[1673121524371,0.45787549,16956.0,16955.0,1.66943352]
[1673121524884,0.45787549,16956.0,16955.0,2.237561]
[1673121525131,0.45787549,16956.0,16955.0,1.66943352]
[1673121525388,0.45787549,16956.0,16955.0,2.237561]
[1673121526628,1.06556049,16956.0,16955.0,2.237561]
[1673121526873,0.45787549,16956.0,16955.0,2.237561]
[1673121527345,1.06556049,16956.0,16955.0,2.237561]
[1673121528096,1.06556049,16956.0,16955.0,1.66943352]
[1673121528356,0.45787549,16956.0,16955.0,1.66943352]
[1673121528612,0.45787549,16956.0,16955.0,2.237561]
[1673121528864,1.06556049,16956.0,16955.0,2.237561]
[1673121529087,1.06556049,16956.0,16955.0,1.66943352]
[1673121530570,0.45787549,16956.0,16955.0,1.66943352]
[1673121530824,0.45787549,16956.0,16955.0,2.237561]
[1673121531857,0.45787549,16956.0,16955.0,1.66943352]
[1673121532354,1.06556049,16956.0,16955.0,1.66943352]
[1673121532575,0.45787549,16956.0,16955.0,1.66943352]
[1673121533083,0.45787549,16956.0,16955.0,2.237561]
[1673121533595,0.45787549,16956.0,16955.0,1.66943352]
[1673121533860,1.06556049,16956.0,16955.0,1.66943352]
[1673121534895,0.45787549,16956.0,16955.0,1.66943352]
[1673121537173,1.06556049,16956.0,16955.0,1.66943352]
[1673121538077,0.45787549,16956.0,16955.0,1.66943352]
[1673121538348,1.06556049,16956.0,16955.0,1.66943352]
[1673121538866,0.45787549,16956.0,16955.0,1.66943352]
[1673121540124,1.06556049,16956.0,16955.0,1.66943352]
[1673121540900,0.45776928,16956.0,16955.0,1.66943352]
[1673121541173,0.45776928,16956.0,16955.0,2.237561]
[1673121541423,0.45776928,16956.0,16955.0,1.66943352]
[1673121542539,1.06545428,16956.0,16955.0,1.66943352]
[1673121542785,1.4196036,16956.0,16955.0,1.66943352]
[1673121543267,0.8119186,16956.0,16955.0,1.66943352]
[1673121543512,1.4196036,16956.0,16955.0,1.66943352]
[1673121543800,1.24255901,16956.0,16955.0,1.66943352]
[1673121544774,0.63487401,16956.0,16955.0,1.66943352]
[1673121545010,1.24255901,16956.0,16955.0,1.66943352]
[1673121545486,1.41960777,16956.0,16955.0,1.66943352]
[1673121545723,0.45777345,16956.0,16955.0,1.66943352]
[1673121545962,1.41960777,16956.0,16955.0,1.66943352]
[1673121546447,1.06545845,16956.0,16955.0,1.66943352]
[1673121546720,0.45777345,16956.0,16955.0,1.66943352]
[1673121546976,0.63487401,16956.0,16955.0,1.66943352]
[1673121547976,1.24255901,16956.0,16955.0,1.66943352]
[1673121548219,0.63487401,16956.0,16955.0,1.66943352]
[1673121548482,1.24255901,16956.0,16955.0,1.66943352]
[1673121548730,0.63487401,16956.0,16955.0,1.66943352]
[1673121548980,0.81192346,16956.0,16955.0,2.237561]
[1673121549253,0.81192346,16956.0,16955.0,1.66943352]
[1673121549486,0.81192342,16956.0,16955.0,2.237561]
[1673121549746,0.81192342,16956.0,16955.0,1.66943352]
[1673121550001,1.24255901,16956.0,16955.0,1.66943352]
[1673121550258,1.41961341,16956.0,16955.0,1.66943352]
[1673121550512,1.41961342,16956.0,16955.0,2.237561]
[1673121550764,0.4577791,16956.0,16955.0,1.66943352]
[1673121551030,0.4577791,16956.0,16955.0,2.237561]
[1673121551793,1.24255901,16956.0,16955.0,1.66943352]
[1673121558097,1.41972643,16956.0,16955.0,1.185592]
[1673121558356,2.20228023,16956.0,16955.0,0.595796]
[1673121558602,1.75954782,16956.0,16955.0,0.006]
[1673121560200,2.20192372,16956.0,16955.0,0.006]
[1673121561991,2.20192372,16956.0,16955.0,0.00589911]
[1673121562279,2.5557397,16956.0,16955.0,0.00589911]
[1673121566864,1.98856619,16956.0,16955.0,0.00589911]
[1673121567139,1.98856619,16956.0,16955.0,0.59569511]
[1673121567390,1.38088119,16956.0,16955.0,0.59569511]
[1673121567867,1.98856619,16956.0,16955.0,0.59569511]
[1673121583382,1.98856619,16956.0,16955.0,0.59558846]
[1673121585670,1.38088119,16956.0,16955.0,0.59558846]
[1673121586442,1.98856619,16956.0,16955.0,0.59558846]
[1673121586962,1.38088119,16956.0,16955.0,0.59558846]
[1673121597847,1.02706521,16956.0,16955.0,0.59558846]
[1673121598861,1.38109631,16956.0,16955.0,0.59558846]
[1673121600117,0.8115667,16956.0,16955.0,0.59558846]
[1673121600368,1.1273013,16955.0,16951.0,0.75]
[1673121600619,0.23767789,16954.0,16952.0,3.27073051]
[1673121600870,0.23767789,16954.0,16953.0,1.66513036]
[1673121601096,0.96984135,16955.0,16953.0,2.84486236]
[1673121601358,0.17701602,16954.0,16953.0,1.75421236]
[1673121601860,0.16978402,16954.0,16953.0,1.75421236]
[1673121602130,0.16978402,16954.0,16953.0,2.24486036]
[1673121602380,0.16978402,16954.0,16953.0,2.33649104]
[1673121602602,0.16978402,16954.0,16953.0,2.24249104]
[1673121602822,0.16978402,16954.0,16953.0,1.75184304]
[1673121603035,0.79728861,16954.0,16953.0,2.38249104]
[1673121605244,0.79728861,16954.0,16953.0,1.89184304]
[1673121605755,0.79728861,16954.0,16953.0,2.38249104]
[1673121606214,0.79728861,16954.0,16953.0,1.89184304]
[1673121606699,0.79728861,16954.0,16953.0,2.38249104]
[1673121610442,0.79728861,16954.0,16953.0,2.06879583]
[1673121611186,0.79728861,16954.0,16953.0,2.55944383]
[1673121611963,0.79728861,16954.0,16953.0,2.06879583]
[1673121612509,0.79728861,16954.0,16953.0,2.55944383]
[1673121613254,0.79717914,16954.0,16953.0,2.55944383]
[1673121613511,0.79717914,16954.0,16953.0,2.06879583]
[1673121614017,0.79717914,16954.0,16953.0,2.55944383]
[1673121614508,0.79717914,16954.0,16953.0,2.06879583]
[1673121616808,0.79717914,16954.0,16953.0,2.55944383]
[1673121617290,0.79717914,16954.0,16953.0,2.06879583]
[1673121618295,0.79717914,16954.0,16953.0,2.55944383]
[1673121618811,0.79717914,16954.0,16953.0,2.06879583]
[1673121619327,0.79717914,16954.0,16953.0,2.55944383]
[1673121619853,0.79717914,16954.0,16953.0,2.06879583]
[1673121621665,0.79717914,16954.0,16953.0,2.55944383]
[1673121622171,0.79717914,16954.0,16953.0,2.06879583]
[1673121622963,0.79717914,16954.0,16953.0,2.55944383]
[1673121623973,0.79717914,16954.0,16953.0,2.06879583]
[1673121624738,0.79717914,16954.0,16953.0,2.55944383]
[1673121624977,0.79717914,16954.0,16953.0,2.85944383]
[1673121625990,0.79717914,16954.0,16953.0,2.36879583]
[1673121626601,0.79717914,16954.0,16953.0,2.85944383]
[1673121626993,0.79717914,16954.0,16953.0,3.12487228]
[1673121627730,0.79717914,16954.0,16953.0,2.63422428]
[1673121628229,0.79717914,16954.0,16953.0,3.12487228]
[1673121629002,0.79717914,16954.0,16953.0,2.63422428]
[1673121629253,0.79717914,16954.0,16953.0,2.36879583]
[1673121629525,0.79717914,16954.0,16953.0,2.85944383]
[1673121630043,0.79717914,16954.0,16953.0,2.55944383]
[1673121630329,0.79717914,16954.0,16953.0,2.06879583]
[1673121630590,0.79717914,16954.0,16953.0,2.36879583]
[1673121630836,0.79717914,16954.0,16953.0,3.12487228]
[1673121632637,0.79717914,16954.0,16953.0,3.99649629]
[1673121632936,0.16610355,16954.0,16953.0,3.99649629]
[1673121633397,0.001,16954.0,16953.0,3.99649629]
[1673121634168,0.16610355,16954.0,16953.0,3.99649629]
[1673121634677,0.001,16954.0,16953.0,3.99649629]
[1673121642989,0.001,16954.0,16953.0,3.50584829]
[1673121643247,0.001,16954.0,16953.0,2.63422428]
[1673121645259,0.16610355,16954.0,16953.0,2.06879583]
[1673121651678,0.001,16954.0,16953.0,2.33422428]
[1673121651989,0.001,16954.0,16953.0,3.99648722]
[1673121652240,0.16610355,16954.0,16953.0,3.12487228]
[1673121652477,0.001,16954.0,16953.0,3.12487228]
[1673121652722,0.001,16954.0,16953.0,2.63422428]
[1673121653217,0.001,16954.0,16953.0,3.99648789]
[1673121656992,0.16610355,16954.0,16953.0,2.85944383]
[1673121657257,0.16610355,16954.0,16953.0,2.36879583]
[1673121658056,0.16610355,16954.0,16953.0,2.85944383]
[1673121658273,0.16610355,16954.0,16953.0,2.55944383]
[1673121658528,0.16610355,16954.0,16953.0,2.06879583]
[1673121659055,0.16610355,16954.0,16953.0,2.55944383]
[1673121660125,0.16493576,16954.0,16953.0,2.55944383]
[1673121661682,0.16493576,16954.0,16953.0,2.82487228]
[1673121661925,0.16493576,16954.0,16953.0,2.33422428]
[1673121662436,0.16493576,16954.0,16953.0,2.82487228]
[1673121662689,0.16493576,16954.0,16953.0,2.55944383]
[1673121662918,0.16493576,16954.0,16953.0,2.82487228]
[1673121664661,0.16493576,16954.0,16953.0,2.33422428]
[1673121665182,0.16493576,16954.0,16953.0,2.82487228]
[1673121666197,0.16493576,16954.0,16953.0,2.33422428]
[1673121666709,0.16493576,16954.0,16953.0,2.82487228]
[1673121669259,0.16493576,16954.0,16953.0,3.12487228]
[1673121670057,0.16493576,16954.0,16953.0,2.85944383]
[1673121670579,0.16493576,16954.0,16953.0,3.12487228]
[1673121670876,0.16493576,16954.0,16953.0,2.82487228]
[1673121671149,0.16493576,16954.0,16953.0,2.33422428]
[1673121671654,0.16493576,16954.0,16953.0,2.06879583]
[1673121671911,0.16493576,16954.0,16953.0,2.55944383]
[1673121673120,0.16493576,16954.0,16953.0,2.06879583]
[1673121673613,0.16493576,16954.0,16953.0,2.55944383]
[1673121677115,0.16493576,16954.0,16953.0,2.06879583]
[1673121677613,0.16493576,16954.0,16953.0,2.82487228]
[1673121678639,0.16493576,16954.0,16953.0,2.55944383]
[1673121682858,0.16493576,16954.0,16953.0,2.06879583]
[1673121683102,0.16493576,16954.0,16953.0,2.55944383]
[1673121685554,0.16493576,16954.0,16953.0,2.82487228]
[1673121686052,0.16493576,16954.0,16953.0,2.55944383]
[1673121687623,0.16493576,16954.0,16953.0,3.69649014]
[1673121691385,0.16493576,16954.0,16953.0,2.55944383]
[1673121691644,0.16493576,16954.0,16953.0,1.98496347]
[1673121691908,0.16493576,16954.0,16953.0,2.55944383]
[1673121693762,0.16493576,16954.0,16953.0,2.06879583]
[1673121694004,0.16493576,16954.0,16953.0,2.55944383]
[1673121694814,0.16493576,16954.0,16953.0,2.06879583]
[1673121695293,0.16493576,16954.0,16953.0,2.55944383]
[1673121697033,0.43045979,16954.0,16953.0,2.55944383]
[1673121697573,0.16493576,16954.0,16953.0,2.55944383]
[1673121705030,0.16493576,16954.0,16953.0,2.06879583]
[1673121705534,0.16493576,16954.0,16953.0,2.55944383]
[1673121706027,0.16493576,16954.0,16953.0,2.06879583]
[1673121706289,0.16493576,16954.0,16953.0,2.55944383]
[1673121707458,0.16493576,16954.0,16953.0,2.06879583]
[1673121714663,0.16493576,16954.0,16953.0,2.55944383]
[1673121718173,0.16493576,16954.0,16953.0,2.06879583]
[1673121718423,0.16493576,16954.0,16953.0,2.82487228]
[1673121718939,0.16493576,16954.0,16953.0,2.55944383]
[1673121719198,0.16493576,16954.0,16953.0,2.06879583]
[1673121720201,0.16493576,16954.0,16953.0,2.55944383]
[1673121721009,0.16493576,16954.0,16953.0,2.06879583]
[1673121722355,0.16493576,16954.0,16953.0,1.49431547]
[1673121723415,0.16493576,16954.0,16953.0,2.06879583]
[1673121723672,0.16493576,16954.0,16953.0,2.55944383]
[1673121725892,0.16493576,16954.0,16953.0,2.06879583]
[1673121726147,0.16493576,16954.0,16953.0,2.82487228]
[1673121727681,0.16493576,16954.0,16953.0,3.69648703]
[1673121728005,0.16493576,16954.0,16953.0,3.69648898]
[1673121728445,0.16493576,16954.0,16953.0,2.82487228]
[1673121728969,0.16493576,16954.0,16953.0,3.69648965]
[1673121729235,0.16493576,16954.0,16953.0,2.82487228]
[1673121729715,0.16493576,16954.0,16953.0,3.69648863]
[1673121731850,0.16493576,16954.0,16953.0,2.82487228]
[1673121732106,0.16493576,16954.0,16953.0,3.69648915]
[1673121732600,0.16493576,16954.0,16953.0,3.69648967]
[1673121732846,0.16493576,16954.0,16953.0,2.82487228]
[1673121735625,0.16493576,16954.0,16953.0,2.55944383]
[1673121736401,0.16493576,16954.0,16953.0,2.06879583]
[1673121736904,0.16493576,16954.0,16953.0,2.55944383]
[1673121737667,0.16493576,16954.0,16953.0,2.06879583]
[1673121738179,0.43045979,16954.0,16953.0,2.06879583]
[1673121738957,0.43045979,16954.0,16953.0,2.55944383]
[1673121739218,0.43045979,16954.0,16953.0,2.06879583]
[1673121739738,0.43045979,16954.0,16953.0,2.55944383]
[1673121740212,0.16493576,16954.0,16953.0,2.55944383]
[1673121740441,0.43045979,16954.0,16953.0,2.55944383]
[1673121740694,0.43045979,16954.0,16953.0,2.06879583]
[1673121741727,0.43045979,16954.0,16953.0,2.55944383]
[1673121742789,0.16493576,16954.0,16953.0,2.55944383]
[1673121743583,0.16493576,16954.0,16953.0,2.06879583]
[1673121744346,0.16493576,16954.0,16953.0,2.55944383]
[1673121746132,0.16493576,16954.0,16953.0,2.06879583]
[1673121746610,0.16493576,16954.0,16953.0,2.55944383]
[1673121748932,0.16493576,16954.0,16953.0,2.06879583]
[1673121749438,0.16493576,16954.0,16953.0,2.55944383]
[1673121750713,0.16493576,16954.0,16953.0,2.06879583]
[1673121751219,0.16493576,16954.0,16953.0,2.55944383]
[1673121751469,0.16493576,16954.0,16953.0,2.06879583]
[1673121751972,0.16493576,16954.0,16953.0,2.55944383]
[1673121752492,0.16493576,16954.0,16953.0,2.06879583]
[1673121752962,0.16493576,16954.0,16953.0,2.55944383]
[1673121754192,0.16493576,16954.0,16953.0,2.06879583]
[1673121754668,0.16493576,16954.0,16953.0,2.55944383]
[1673121757198,0.16493576,16954.0,16953.0,2.06879583]
[1673121757702,0.16493576,16954.0,16953.0,2.55944383]
[1673121758925,0.16493576,16954.0,16953.0,2.85944383]
[1673121759697,1.43181095,16955.0,16953.0,3.99649281]
[1673121759949,0.16493576,16954.0,16953.0,2.63422428]
[1673121760205,0.16493576,16954.0,16953.0,2.36879583]
[1673121760476,0.16493576,16954.0,16953.0,2.85944183]
[1673121760933,0.16493576,16954.0,16953.0,2.36879583]
[1673121761455,0.16493576,16954.0,16953.0,2.85944383]
[1673121762201,0.16493576,16954.0,16953.0,2.36879583]
[1673121762479,0.16493576,16954.0,16953.0,2.63422428]
[1673121762721,0.16493576,16954.0,16953.0,2.85944383]
[1673121762973,0.16493576,16954.0,16953.0,3.12487228]
[1673121763490,0.16493576,16954.0,16953.0,2.85944383]
[1673121763851,0.16493576,16954.0,16953.0,2.06879583]
[1673121764309,0.16493576,16954.0,16953.0,3.12487228]
[1673121765058,0.16493576,16954.0,16953.0,2.55944383]
[1673121765279,0.16493576,16954.0,16953.0,2.85944383]
[1673121765779,0.16493576,16954.0,16953.0,2.36879583]
[1673121766368,0.16493576,16954.0,16953.0,3.12487228]
[1673121769110,1.43181095,16955.0,16953.0,3.99649627]
[1673121769369,1.43181095,16955.0,16953.0,2.63422428]
[1673121769370,0.16493576,16954.0,16953.0,2.63422428]
[1673121769621,0.16493576,16954.0,16953.0,3.12487028]
[1673121770177,0.16493576,16954.0,16953.0,3.08187028]
[1673121770440,1.43181095,16955.0,16953.0,3.9534938]
[1673121770698,1.07777985,16955.0,16953.0,2.49422428]
[1673121771205,1.07777985,16955.0,16954.0,1.090617]
[1673121771517,1.07777985,16955.0,16954.0,2.24475936]
[1673121771766,0.43045979,16955.0,16954.0,2.24475936]
[1673121772293,0.43045979,16955.0,16954.0,1.179662]
[1673121772545,0.43045979,16955.0,16954.0,1.205662]
[1673121772793,0.43045979,16955.0,16954.0,1.78014236]
[1673121773274,0.43045979,16955.0,16954.0,2.27075736]
[1673121775862,0.16493576,16955.0,16954.0,2.27075736]
[1673121777759,0.16493576,16955.0,16954.0,1.78014236]
[1673121778246,0.16493576,16955.0,16954.0,2.27075736]
[1673121778470,0.16493576,16955.0,16954.0,1.78014236]
[1673121779709,0.16493576,16955.0,16954.0,2.27075736]
[1673121779974,0.16493576,16955.0,16954.0,1.78014236]
[1673121780448,0.16493576,16955.0,16954.0,2.27075736]
[1673121780968,0.16493576,16955.0,16954.0,1.78014236]
[1673121781482,0.16493576,16955.0,16954.0,2.27075736]
[1673121781994,0.16493576,16955.0,16954.0,1.78014236]
[1673121783265,0.16493576,16955.0,16954.0,2.49929086]
[1673121783516,0.48932146,16956.0,16954.0,2.98990586]
[1673121783775,0.48932146,16956.0,16955.0,0.490584]
[1673121784025,0.48932146,16956.0,16955.0,1.179592]
[1673121784274,0.43966949,16956.0,16955.0,1.179592]
[1673121784948,0.44966949,16956.0,16955.0,1.179592]
[1673121785201,0.43966949,16956.0,16955.0,1.179592]
[1673121785426,0.44966949,16956.0,16955.0,1.185592]
[1673121787488,0.18414546,16956.0,16955.0,2.27499429]
[1673121787972,0.18414546,16956.0,16955.0,1.78441229]
[1673121788432,0.18414546,16956.0,16955.0,2.84947465]
[1673121788657,0.0192097,16956.0,16955.0,2.84947465]
[1673121788927,0.0192097,16956.0,16955.0,2.35889265]
[1673121789163,0.0192097,16956.0,16955.0,1.78441229]
[1673121791092,0.0192097,16956.0,16955.0,2.35889265]
[1673121791335,0.0192097,16956.0,16955.0,1.78441229]
[1673121791607,0.0192097,16956.0,16955.0,2.27499429]
[1673121792366,0.0192097,16956.0,16955.0,2.84947465]
[1673121792618,0.0192097,16956.0,16955.0,2.35889265]
[1673121793127,0.0192097,16956.0,16955.0,1.78441229]
[1673121795192,0.18414546,16956.0,16955.0,1.78441229]
[1673121795444,0.0192097,16956.0,16955.0,1.78441229]
[1673121796471,0.18414546,16956.0,16955.0,1.78441229]
[1673121803710,0.18414546,16956.0,16955.0,2.27499429]
[1673121804206,0.0192097,16956.0,16955.0,2.27499429]
[1673121804508,0.0192097,16956.0,16955.0,1.78441229]
[1673121804997,0.0192097,16956.0,16955.0,2.27499429]
[1673121806239,0.0192097,16956.0,16955.0,1.78441229]
[1673121807928,0.18414546,16956.0,16955.0,1.78441229]
[1673121808189,0.0192097,16956.0,16955.0,1.78441229]
[1673121808944,0.0192097,16956.0,16955.0,2.27499429]
[1673121809711,0.0192097,16956.0,16955.0,2.84947465]
[1673121809924,0.0192097,16956.0,16955.0,2.27499429]
[1673121810145,0.0192097,16956.0,16955.0,1.78441229]
[1673121811896,0.0192097,16956.0,16955.0,2.27499429]
[1673121812142,0.0192097,16956.0,16955.0,2.84947465]
[1673121812907,0.0192097,16956.0,16955.0,2.27499429]
[1673121813920,0.0192097,16956.0,16955.0,2.57499429]
[1673121814180,0.0192097,16956.0,16955.0,2.27499429]
[1673121814417,0.18414546,16956.0,16955.0,1.78441229]
[1673121818660,0.18414546,16956.0,16955.0,2.27499429]
[1673121819167,0.18414546,16956.0,16955.0,1.78441229]
[1673121819426,0.18414546,16956.0,16955.0,3.02642744]
[1673121819685,0.18414546,16956.0,16955.0,3.32642744]
[1673121820469,0.18414546,16956.0,16955.0,2.45194708]
[1673121820720,0.18414546,16956.0,16955.0,1.96136508]
[1673121820977,0.18414546,16956.0,16955.0,2.26136508]
[1673121821235,0.18414546,16956.0,16955.0,2.75194708]
[1673121821489,0.18414546,16956.0,16955.0,2.45194708]
[1673121823261,0.18414546,16956.0,16955.0,3.32642744]
[1673121826300,0.18414546,16956.0,16955.0,2.75194708]
[1673121827043,0.18414546,16956.0,16955.0,3.32642744]
[1673121827547,0.18414546,16956.0,16955.0,2.75194708]
[1673121828055,0.18414546,16956.0,16955.0,3.32642744]
[1673121830614,0.0192097,16956.0,16955.0,3.32642744]
[1673121831628,0.0192097,16956.0,16955.0,3.59185589]
[1673121832378,0.0192097,16956.0,16955.0,4.46336303]
[1673121833610,0.0192097,16956.0,16955.0,4.46336573]
[1673121833860,0.0192097,16956.0,16955.0,3.59185589]
[1673121834106,0.0192097,16956.0,16955.0,4.4633689]
[1673121835058,0.0192097,16956.0,16955.0,4.81728135]
[1673121835556,0.0192097,16956.0,16955.0,4.81718438]
[1673121835813,0.0192097,16956.0,16955.0,4.46327193]
[1673121837876,0.01914045,16956.0,16955.0,4.64032856]
[1673121838401,1e-08,16956.0,16955.0,4.64032856]
[1673121842905,1e-08,16956.0,16955.0,4.46322591]
[1673121843148,1e-08,16956.0,16955.0,4.81713836]
[1673121843890,1e-08,16956.0,16955.0,4.46322591]
[1673121844140,1e-08,16956.0,16955.0,4.81713836]
[1673121844384,1e-08,16956.0,16955.0,4.46322591]
[1673121844629,1e-08,16956.0,16955.0,4.64032856]
[1673121862787,1e-08,16956.0,16955.0,4.81728127]
[1673121865357,0.19758001,16956.0,16955.0,4.81728127]
[1673121868265,0.5005,16957.0,16956.0,0.6]
[1673121868526,0.5005,16957.0,16956.0,3.96647198]
[1673121868744,0.5005,16957.0,16956.0,4.45702098]
[1673121868995,0.5005,16957.0,16956.0,5.00802728]
[1673121869268,0.5005,16957.0,16956.0,4.40802728]
[1673121869508,0.5005,16957.0,16956.0,3.83444128]
[1673121869762,0.5005,16957.0,16956.0,3.54344128]
[1673121870503,0.5005,16957.0,16956.0,3.54339251]
[1673121870753,0.5005,16957.0,16956.0,4.11697851]
[1673121870993,0.5005,16957.0,16956.0,4.41697851]
[1673121873253,0.5005,16957.0,16956.0,3.84339251]
[1673121873502,0.5005,16957.0,16956.0,4.41697851]
[1673121875530,0.5005,16957.0,16956.0,3.84339251]
[1673121875759,0.5005,16957.0,16956.0,4.41697851]
[1673121876519,0.5005,16957.0,16956.0,4.77089096]
[1673121876768,0.5005,16957.0,16956.0,4.59415057]
[1673121878121,0.5005,16957.0,16956.0,4.41701641]
[1673121878314,0.5005,16957.0,16956.0,4.77092886]
[1673121879076,0.5005,16957.0,16956.0,4.41701641]
[1673121879864,0.5005,16957.0,16956.0,4.77092886]
[1673121880123,0.5005,16957.0,16956.0,4.41701641]
[1673121880375,0.5005,16957.0,16956.0,4.59415057]
[1673121885742,0.5005,16957.0,16956.0,5.03653173]
[1673121886431,0.5005,16957.0,16956.0,4.59415057]
[1673121888838,0.5005,16957.0,16956.0,4.10360157]
[1673121892716,0.5005,16957.0,16956.0,4.54598273]
[1673121892949,0.5005,16957.0,16956.0,4.28087215]
[1673121894419,0.22191158,16959.0,16957.0,6.583e-05]
[1673121894671,0.05697582,16959.0,16958.0,1.94580834]
[1673121895187,0.00920933,16959.0,16958.0,1.94580834]
[1673121896186,0.00920933,16959.0,16958.0,1.769076]
[1673121896432,0.17414509,16959.0,16958.0,1.769076]
[1673121896688,0.78183009,16959.0,16958.0,1.769076]
[1673121897158,0.78183009,16959.0,16958.0,1.780076]
[1673121897720,0.78183009,16959.0,16958.0,1.190384]
[1673121898521,0.43966912,16959.0,16958.0,1.190384]
[1673121901014,1.04735412,16959.0,16958.0,1.190384]
[1673121901538,1.04735412,16959.0,16958.0,1.183167]
[1673121904334,1.40138522,16959.0,16958.0,1.183167]
[1673121905126,1.41340443,16959.0,16958.0,1.183167]
[1673121905378,1.23644946,16959.0,16958.0,1.183167]
[1673121907125,1.4134096,16959.0,16958.0,1.183167]
[1673121907618,1.0593785,16959.0,16958.0,1.183167]
[1673121909442,0.4516935,16959.0,16958.0,1.77117142]
[1673121910176,0.18616947,16959.0,16958.0,1.77117142]
[1673121910944,0.18616947,16959.0,16958.0,0.59900442]
[1673121911236,0.18616947,16959.0,16958.0,1.77838842]
[1673121919825,0.4516935,16959.0,16958.0,1.77838842]
[1673121922563,0.43072999,16959.0,16958.0,1.77838842]
[1673121930844,0.16520596,16959.0,16958.0,1.77838842]
[1673121938400,0.43072999,16959.0,16958.0,1.77838842]
[1673121940198,0.16520596,16959.0,16958.0,1.77838842]
[1673121941209,0.16520596,16959.0,16958.0,1.95512076]
[1673121942222,0.16520596,16959.0,16958.0,2.52870676]
[1673121942697,0.16520596,16959.0,16958.0,1.95512076]
[1673121943135,0.16520596,16959.0,16958.0,2.44560476]
[1673121943398,0.16520596,16959.0,16958.0,1.95512076]
[1673121943659,0.18142619,16960.0,16958.0,4.455651]
[1673121943919,0.18142619,16960.0,16959.0,0.490452]
[1673121944192,0.18142619,16960.0,16959.0,2.3529]
[1673121944448,0.18142619,16960.0,16959.0,1.95604634]
[1673121945241,0.01622023,16960.0,16959.0,1.179314]
[1673121945493,0.01622023,16960.0,16959.0,1.190314]
[1673121945771,0.01622023,16960.0,16959.0,1.36704634]
[1673121946009,0.01622023,16960.0,16959.0,2.24063234]
[1673121946265,0.01622023,16960.0,16959.0,1.85749734]
[1673121946752,0.01622023,16960.0,16959.0,1.36704634]
[1673121947028,0.01182023,16960.0,16959.0,1.66704634]
[1673121947259,0.01182023,16960.0,16959.0,1.490314]
[1673121947520,0.01182023,16960.0,16959.0,1.19128591]
[1673121947780,0.01182023,16960.0,16959.0,2.18887596]
[1673121948028,0.01182023,16960.0,16959.0,3.25291296]
[1673121948279,0.01175363,16960.0,16959.0,2.67932696]
[1673121948521,0.01175363,16960.0,16959.0,2.18887596]
[1673121948771,0.01175363,16960.0,16959.0,2.76246196]
[1673121949043,0.01175363,16960.0,16959.0,3.25291296]
[1673121949552,0.01175363,16960.0,16959.0,2.76246196]
[1673121949807,0.01175363,16960.0,16959.0,3.25291296]
[1673121950060,0.01175363,16960.0,16959.0,2.76246196]
[1673121950824,0.01175363,16960.0,16959.0,3.25291296]
[1673121951300,0.01175363,16960.0,16959.0,2.76246196]
[1673121952123,0.01175363,16960.0,16959.0,3.25291296]
[1673121952371,0.01175363,16960.0,16959.0,2.58572962]
[1673121952616,0.01175363,16960.0,16959.0,2.28572962]
[1673121953390,0.01175363,16960.0,16959.0,1.71214362]
[1673121953641,0.01175363,16960.0,16959.0,2.28572962]
[1673121954407,0.01175363,16960.0,16959.0,1.71214362]
[1673121954666,0.01175363,16960.0,16959.0,2.28572962]
[1673121954933,0.01175363,16960.0,16959.0,3.07618062]
[1673121955720,0.01175363,16960.0,16959.0,2.58572962]
[1673121956260,0.01175363,16960.0,16959.0,3.07618062]
[1673121956866,0.01175363,16960.0,16959.0,2.58572962]
[1673121957031,0.01175363,16960.0,16959.0,3.07618062]
[1673121957800,0.01175363,16960.0,16959.0,2.58572962]
[1673121959847,0.01175363,16960.0,16959.0,3.07618062]
[1673121960375,0.01026963,16960.0,16959.0,3.07618062]
[1673121960642,0.01026963,16960.0,16959.0,2.58572962]
[1673121961671,0.01026963,16960.0,16959.0,3.07618062]
[1673121964242,0.01026963,16960.0,16959.0,3.25291296]
[1673121964500,0.01953084,16961.0,16960.0,1.2772908]
[1673121964759,0.01953084,16961.0,16960.0,3.0301208]
[1673121965270,0.01953084,16961.0,16960.0,3.3301208]
[1673121966292,0.01953084,16961.0,16960.0,3.3411208]
[1673121969388,0.01953084,16961.0,16960.0,2.7411208]
[1673121977646,0.01953084,16961.0,16960.0,1.8675348]
[1673121977901,0.01953084,16961.0,16960.0,2.1675348]